Workbook

Sheet Read Me
A1: Air Pollution Control Cost Estimation Spreadsheet
A2: For Selective Non-Catalytic Reduction (SNCR)
A3: U.S. Environmental Protection Agency
A4: Air Economics Group
A5: Health and Environmental Impacts Division
A6: Office of Air Quality Planning and Standards
A7: (March 2021)
B9: This spreadsheet allows users to estimate the capital and annualized costs for installing and operating a Selective Non-Catalytic Reduction (SNCR) control device. SNCR is a post-combustion control technology for reducing NOx emissions by injecting an ammonia-base reagent (urea or ammonia) into the furnace at a location where the temperature is in the appropriate range for ammonia radicals to react with NOx to form nitrogen and water.
B11: The calculation methodologies used in this spreadsheet are those presented in the U.S. EPA's Air Pollution Control Cost Manual. This spreadsheet is intended to be used in combination with the SNCR chapter and cost estimation methodology in the Control Cost Manual. For a detailed description of the SNCR control technology and the cost methodologies, see Section 4, Chapter 1 of the Air Pollution Control Cost Manual (as updated April 2019). A copy of the Control Cost Manual is available on the U.S. EPA's "Technology Transfer Network" website at: https://www.epa.gov/economic-and-cost-analysis-air-pollution-regulations/cost-reports-and-guidance-air-pollution.
B13: The spreadsheet can be used to estimate capital and annualized costs for applying SNCR, and particularly to the following types of combustion units:
B15: (1) | C15: Coal-fired utility boilers with full load capacities greater than or equal to 25 MW.
B16: (2) | C16: Fuel oil- and natural gas-fired utility boilers with full load capacities greater than or equal to 25 MW.
B17: (3) | C17: Coal-fired industrial boilers with maximum heat input capacities greater than or equal to 250 MMBtu/hour.
B18: (4) | C18: Fuel oil- and natural gas-fired industrial boilers with maximum heat input capacities greater than or equal to 250 MMBtu/hour.
B20: The methodology used in this spreadsheet is based on the U.S. EPA Clean Air Markets Division (CAMD)'s Integrated Planning Model (IPM version 6). The size and costs of the SNCR are based primarily on four parameters: the boiler size or heat input, the type of fuel burned, the required level of NOx reduction, and the reagent consumption. This approach provides study-level estimates (±30%) of SNCR capital and annual costs. Default data in the spreadsheet is taken from the SNCR Control Cost Manual and other sources such as the U.S. Energy Information Administration (EIA). The actual costs may vary from those calculated here due to site-specific conditions, such as the boiler configuration and fuel type. Selection of the most cost-effective control option should be based on a detailed engineering study and cost quotations from system suppliers. For additional information regarding the IPM, see the EPA Clean Air Markets webpage at http://www.epa.gov/airmarkets/power-sector-modeling. The Agency wishes to note that all spreadsheet data inputs other than default data are merely available to show an example calculation.
B22: Instructions
B23: Step 1: Please select on the Data Inputs tab and click on the Reset Form button. This will reset the NSR, plant elevation, estimated equipment life, desired dollar year, cost index (to match desired dollar year), annual interest rate, unit costs for fuel, electricity, reagent, water and ash disposal, and the cost factors for maintenance cost and administrative charges. All other data entry fields will be blank.
B24: Step 2: Select the type of combustion unit (utility or industrial) using the pull down menu. Indicate whether the SNCR is for new construction or retrofit of an existing boiler. If the SNCR will be installed on an existing boiler, enter a retrofit factor equal to or greater than 0.84. Use 1 for retrofits with an average level of difficulty. For more difficult retrofits, you may use a retrofit factor greater than 1; however, you must document why the value used is appropriate.
B25: Step 3: Select the type of fuel burned (coal, fuel oil, and natural gas) using the pull down menu. If you selected coal, select the type of coal burned from the drop down menu. The NOx emissions rate, weight percent coal ash and NPHR will be pre-populated with default factors based on the type of coal selected. However, we encourage you to enter your own values for these parameters, if they are known, since the actual fuel parameters may vary from the default values provided.
B26: Step 4: Complete all of the cells highlighted in yellow. As noted in step 1 above, some of the highlighted cells are pre-populated with default values based on 2016 data. Users should document the source of all values entered in accordance with what is recommended in the Control Cost Manual, and the use of actual values other than the default values in this spreadsheet, if appropriately documented, is acceptable. You may also adjust the maintenance and administrative charges cost factors (cells highlighted in blue) from their default values of 0.015 and 0.03, respectively. The default values for these two factors were developed for the CAMD Integrated Planning Model (IPM). If you elect to adjust these factors, you must document why the alternative values used are appropriate.
B27: Step 5: Once all of the data fields are complete, select the SNCR Design Parameters tab to see the calculated design parameters and the Cost Estimate tab to view the calculated cost data for the installation and operation of the SNCR.

Sheet Data Inputs
A1: Data Inputs
A3: Enter the following data for your combustion unit:
A4: Is the combustion unit a utility or industrial boiler? | F4: What type of fuel does the unit burn?
A5: Is the SNCR for a new boiler or retrofit of an existing boiler?
A7: =IF(S8=3, "Please enter a retrofit factor equal to or greater than 0.84 based on the level of difficulty. Enter 1 for projects of average retrofit difficulty.", " ") -> Please enter a retrofit factor equal to or greater than 0.84 based on the level of difficulty. Enter 1 for projects of average retrofit difficulty. | D7: 1 | E7: =IF(D7>1, "* NOTE: You must document why a retrofit factor of "&D7&" is appropriate for the proposed project.", " ") -> 
A8: Complete all of the highlighted data fields: | P8: 3 | Q8: Utility | R8: New Construction | S8: 3
F9: Provide the following information for coal-fired boilers: | Q9: Industrial | R9: Retrofit
B10: What is the maximum heat input rate (QB)? | C10: 242.3 | D10: MMBtu/hour | E10: company report | F10: Type of coal burned: | T10: SO2 Emission Rate (lbs SO2/MMBtu) = | V10: =((I12/100)*(64/32)*1000000)/C12 -> 1.876430206
Q11: < 3lb/MMBtu | R11: Bituminous | T11: SO2 Emission Rate | V11: =IF(I12="",P12,(IF(V10<3,2,(IF(OR(V10>3,V10=3),3))))) -> 2
B12: What is the higher heating value (HHV) of the fuel? | C12: =17480000/2000 -> 8740 | D12: Btu/lb | E12: company report | F12: Enter the sulfur content (%S) = | I12: 0.82 | J12: percent by weight | P12: 4 | Q12: ≥ 3lb/MMBtu | R12: Sub-Bituminous | S12: 4
B13: =IF(C12=R21,"*HHV is the weighted average value calculated using the values entered in the coal blend composition table.",(IF(OR(C12=C74,C12=1033,C12=11814,C12=6534,C12=8730,C12=141468),"*HHV value of "&C12&" "&D12&" is a default value. See below for data source. Enter actual HHV for fuel burned, if known. "," "))) ->  | F13: or Select the appropriate SO2 emission rate: | Q13: Not Applicable | R13: Lignite
B14: What is the estimated actual annual fuel consumption? | C14: 150000000 | D14: lbs/Year | E14: estimate | G14: =IF(OR(P17=1,P17>2,P12=1,I12=" ")," ",(IF(OR(I12=C72,I12=0.82,I12=0.41,I12=1.84),"*The sulfur content of "&I12&"% is a default value. See below for data source. Enter actual value, if known.",(IF(AND(V11=3,P12=2),"*Error! Based on the %S value entered, the sulfur dioxide emission rate is ≥ 3 lb/MMBtu. Please correct sulfur content or emission rate, as appropriate.",(IF(AND(V11=2,P12=3),"Error! Based on the %S value entered, the sulfur dioxide emission rate is < 3 lb/MMBtu. Please correct sulfur content or emission rate, as appropriate."," "))))))) -> *The sulfur content of 0.82% is a default value. See below for data source. Enter actual value, if known. | R14: Coal blend
F15: Ash content (%Ash): | I15: 13.6 | J15: percent by weight | R15: Not Applicable
B16: Is the boiler a fluid-bed boiler? | G16: =IF(OR(I15=C73, I15=9.23,I15=5.84,I15=13.6),"*The ash content of "&I15&"% is a default value. See below for data source. Enter actual value, if known."," ") -> *The ash content of 13.6% is a default value. See below for data source. Enter actual value, if known. | Q16: Coal
F17: For units burning coal blends: | P17: 2 | Q17: Fuel Oil
B18: Enter the net plant heat input rate (NPHR) | C18: 10 | D18: MMBtu/MW | E18: company report | G18: Note: The table below is pre-populated with default values for HHV, %S, %Ash and cost. Please enter the actual values for these parameters in the table below. If the actual value for any parameter is not known, you may use the default values provided. | Q18: Natural Gas
G19: Coal Blend Composition Table
I20: Fraction in Coal Blend | J20: %S | K20: %Ash | L20: HHV (Btu/lb) | M20: Fuel Cost ($/MMBtu)
B21: If the NPHR is not known, use the default NPHR value: | C21: Fuel Type | D21: Default NPHR | G21: Bituminous | I21: 0 | J21: 1.84 | K21: 9.23 | L21: 11841 | M21: 2.4 | R21: 10500
C22: Coal | D22: 10 MMBtu/MW | G22: Sub-Bituminous | I22: 0 | J22: 0.41 | K22: 5.84 | L22: 8826 | M22: 1.89
C23: Fuel Oil | D23: 11 MMBtu/MW | G23: Lignite | I23: 0 | J23: 0.82 | K23: 13.6 | L23: 6626 | M23: 1.74
C24: Natural Gas | D24: 8.2 MMBtu/MW
G25: Please click the calculate button to calculate weighted values based on the data in the table above. | P25: 3 | Q25: Yes
P26: Note: If P25= Yes, then BTF = 0.75 for fluid bed boilers; Else BTF=1 | Q26: No
A29: Enter the following design parameters for the proposed SNCR:
B31: Number of days the SNCR operates (tSNCR) | C31: =8592/24 -> 358 | D31: days | E31: company report | G31: Plant Elevation | I31: 4555 | J31: Feet above sea level | L31: Goggle Earth
B32: Number of days the boiler operates (tplant) | C32: =8592/24 -> 358 | D32: days | E32: company report
B33: Inlet NOx Emissions (NOxin) to SNCR | C33: 0.19 | D33: lb/MMBtu | E33: company report
B34: Oulet NOx Emissions (NOxout) from SNCR | C34: 0.14 | D34: lb/MMBtu | E34: based on consultant estimate
B35: Estimated Normalized Stoichiometric Ratio (NSR) | C35: 1.05
B37: Concentration of reagent as stored (Cstored) | C37: 29 | D37: Percent
B38: Density of reagent as stored (ρstored) | C38: 56 | D38: lb/ft3
B39: Concentration of reagent injected (Cinj) | C39: 10 | D39: percent | H39: Densities of typical SNCR reagents:
B40: Number of days reagent is stored (tstorage) | C40: 14 | D40: days | H40: 50% urea solution | J40: 71 | K40: lbs/ft3
B41: Estimated equipment life | C41: 20 | D41: Years | H41: 29.4% aqueous NH3 | J41: 56 | K41: lbs/ft3 | P41: 1 | Q41: Urea
P42: 2 | Q42: Ammonia
B43: Select the reagent used
A46: Enter the cost data for the proposed SNCR:
B48: Desired dollar-year | C48: 2020
B49: ="CEPCI for " & C48 -> CEPCI for 2020 | C49: 596.2 | D49: =IF(C48=2016," ","Enter the CEPCI value for "&C48) -> Enter the CEPCI value for 2020 | F49: 541.7 | G49: 2016 CEPCI | I49: CEPCI = Chemical Engineering Plant Cost Index
B50: Annual Interest Rate (i) | C50: 3.5 | D50: =IF(C50=3.25, "Percent*", "Percent") -> Percent | I50: =IF(C50=3.25,"* 3.25 percent is the default bank prime rate. User should enter current bank prime rate (available at https://www.federalreserve.gov/releases/h15/.)"," ") -> 
B51: Fuel (Costfuel) | D51: ="$/MMBtu"&(IF(OR(C51=C70,C51=5.14,C51=20.01, C51=2.79,C51=2.04, C51=1.85),"*"," ")) -> $/MMBtu
B52: Reagent (Costreag) | C52: 0.293 | D52: ="$/gallon for a "&C37&" percent solution of "&(IF(P42=1,"urea",(IF(P42=2,"ammonia", " "))))&(IF(C52=1.66,"*"," ")) -> $/gallon for a 29 percent solution of ammonia
B53: Water (Costwater) | C53: 0.00458 | D53: ="$/gallon"&(IF(C53=0.00417, "*"," ")) -> $/gallon | I53: company report
B54: Electricity (Costelect) | C54: 0.12 | D54: ="$/kWh"&(IF(OR(C54=0.0676, C54=0.0361), "*"," ")) -> $/kWh | I54: company report
B55: Ash Disposal (for coal-fired boilers only) (Costash) | C55: 48.8 | D55: ="$/ton"&(IF(C55=48.8, "*","")) -> $/ton*
B57: Note: The use of CEPCI in this spreadsheet is not an endorsement of the index, but is there merely to allow for availability of a well-known cost index to spreadsheet users. Use of other well-known cost indexes (e.g., M&S) is acceptable.
A59: Maintenance and Administrative Charges Cost Factors:
C60: 0.015
B61: Maintenance Cost Factor (MCF) = | C61: 0.015 | D61: =IF(C61>0.015,"*MCF is greater than the IPM default value of 0.015. User must document why the value entered is appropriate.",(IF(C61<0.015,"*MCF is less than the IPM default value of 0.015. User must document why the value entered is appropriate."," "))) -> 
B62: Administrative Charges Factor (ACF) = | C62: 0.03 | D62: =IF(C62>0.03,"*ACF is greater than the IPM default value of 0.03. User must document why the value entered is appropriate.",(IF(C62<0.03,"*ACF is less than the IPM default value of 0.03. User must document why the value entered is appropriate."," "))) -> 
A64: Data Sources for Default Values Used in Calculations:
B66: Data Element | C66: Default Value | D66: Sources for Default Value | J66: If you used your own site-specific values, please enter the value used and the reference source . . . | O66: Recommended data sources for site-specific information
B67: Reagent Cost | C67: $0.293/gallon of 29% Ammonia | D67: U.S. Geological Survey, Minerals Commodity Summaries, January 2017 (https://minerals.usgs.gov/minerals/pubs/commodity/nitrogen/mcs-2017-nitro.pdf | O67: Check with reagent vendors for current prices.
B68: Water Cost ($/gallon) | C68: 0.00417 | D68: Average water rates for industrial facilities in 2013 compiled by Black & Veatch. (see 2012/2013 "50 Largest Cities Water/Wastewater Rate Survey." Available at http://www.saws.org/who_we_are/community/RAC/docs/2014/50-largest-cities-brochure-water-wastewater-rate-survey.pdf. | O68: Plant's utility bill or Black & Veatch's "50 Largest Cities Water/Wastewater Rate Survey." Available at http://www.saws.org/who_we_are/community/RAC/docs/2014/50-largest-cities-brochure-water-wastewater-rate-survey.pdf. .
B69: Electricity Cost ($/kWh) | C69: 0.0676 | D69: U.S. Energy Information Administration. Electric Power Monthly. Table 5.3. Published December 2017. Available at: https://www.eia.gov/electricity/monthly/epm_table_grapher.php?t=epmt_5_6_a. | O69: Plant's utility bill or use U.S. Energy Information Administration (EIA) data for most recent year. Available at http://www.eia.gov/electricity/data.cfm#sales.
B70: Fuel Cost ($/MMBtu) | C70: 1.74 | D70: U.S. Energy Information Administration. Electric Power Annual 2016. Table 7.4. Published December 2017. Available at: https://www.eia.gov/electricity/annual/pdf/epa.pdf. | O70: Check with fuel supplier or use U.S. Energy Information Administration (EIA) data for most recent year. Available at http://www.eia.gov/electricity/data/eia923/.
B71: Ash Disposal Cost ($/ton) | C71: 48.8 | D71: Waste Business Journal. The Cost to Landfill MSW Continues to Rise Despite Soft Demand. July 11, 2017. Available at: http://www.wastebusinessjournal.com/news/wbj20170711A.htm. | O71: Use plant data or use Waste Business Journal. The Cost to Landfill MSW Continues to Rise Despite Soft Demand. July 11, 2017. Available at: http://www.wastebusinessjournal.com/news/wbj20170711A.htm.
B72: Percent sulfur content for Coal (% weight) | C72: 0.82 | D72: Average sulfur content based on U.S. coal data for 2016 compiled by the U.S. Energy Information Administration (EIA) from data reported on EIA Form EIA-923, Power Plant Operations Report. Available at http://www.eia.gov/electricity/data/eia923/. | O72: Check with fuel supplier or use U.S. Energy Information Administration (EIA) data for most recent year. Available at http://www.eia.gov/electricity/data/eia923/.
B73: Percent ash content for Coal (% weight) | C73: 13.6 | D73: Average ash content based on U.S. coal data for 2016 compiled by the U.S. Energy Information Administration (EIA) from data reported on EIA Form EIA-923, Power Plant Operations Report. Available at http://www.eia.gov/electricity/data/eia923/. | O73: Check with fuel supplier or use U.S. Energy Information Administration (EIA) data for most recent year. Available at http://www.eia.gov/electricity/data/eia923/.
B74: Higher Heating Value (HHV) (Btu/lb) | C74: 6685 | D74: Select type of coal | O74: Fuel supplier or use U.S. Energy Information Administration (EIA) data for most recent year. Available at http://www.eia.gov/electricity/data/eia923/.
B75: Interest Rate | C75: 3.25 | D75: Default bank prime rate | J75: Bank prime rate is as of March 2, 2021 and is available as the rates listed under 'bank prime loan' at https://www.federalreserve.gov/releases/h15/. | O75: Use current bank prime rate available at https://www.federalreserve.gov/releases/h15/.

Sheet SNCR Design Parameters
A1: SNCR Design Parameters
A3: The following design parameters for the SNCR were calculated based on the values entered on the Data Inputs tab. These values were used to prepare the costs shown on the Cost Estimate tab.
A5: Parameter | B5: Equation | C5: Calculated Value | D5: Units
A6: Maximum Annual Heat Input Rate (QB) = | B6: =IF('Data Inputs'!P8=2,"Bmw x NPHR =", "HHV x Max. Fuel Rate =") -> HHV x Max. Fuel Rate = | C6: =IF('Data Inputs'!P8=2,('Data Inputs'!C10*'Data Inputs'!C18),'Data Inputs'!C10) -> 242.3 | D6: MMBtu/hour
A7: =IF('Data Inputs'!P8=2,"Maximum Annual MWh Output =",(IF('Data Inputs'!P8=3,"Maximum Annual fuel consumption (mfuel) ="," "))) -> Maximum Annual fuel consumption (mfuel) = | B7: =IF('Data Inputs'!P8=2, "Bmw x 8760 = ", (IF('Data Inputs'!P8=3, "(QB x 1.0E6 Btu/MMBtu x 8760)/HHV =", " "))) -> (QB x 1.0E6 Btu/MMBtu x 8760)/HHV = | C7: =IF('Data Inputs'!P8=3,((('SNCR Design Parameters'!C6/'Data Inputs'!C12)*1000000)*8760),(IF('Data Inputs'!P8=2,('Data Inputs'!C10*8760)," "))) -> 242854462.2 | D7: ='Data Inputs'!$D$14 -> lbs/Year
A8: =IF('Data Inputs'!P8=2,"Estimated Actual Annual MWh Output (Boutput) =",(IF('Data Inputs'!P8=3,"Actual Annual fuel consumption (Mactual) ="," "))) -> Actual Annual fuel consumption (Mactual) = | C8: ='Data Inputs'!C14 -> 150000000 | D8: ='Data Inputs'!$D$14 -> lbs/Year
A9: Heat Rate Factor (HRF) = | B9: NPHR/10 = | C9: ='Data Inputs'!C18/10 -> 1
A10: Total System Capacity Factor (CFtotal) = | B10: =IF('Data Inputs'!P8=2, "(Boutput/Bmw)*(tsncr/tplant) =", (IF('Data Inputs'!P8=3, "(Mactual/Mfuel) x (tSNCR/tplant) =", " "))) -> (Mactual/Mfuel) x (tSNCR/tplant) = | C10: =(C8/C7)*('Data Inputs'!C31/'Data Inputs'!C32) -> 0.6176538764 | D10: fraction
A11: Total operating time for the SNCR (top) = | B11: CFtotal x 8760 = | C11: =C10*8760 -> 5410.647957 | D11: hours
A12: NOx Removal Efficiency (EF) = | B12: (NOxin - NOxout)/NOxin = | C12: =(('Data Inputs'!C33-'Data Inputs'!C34)/'Data Inputs'!C33)*100 -> 26.31578947 | D12: percent
A13: NOx removed per hour = | B13: NOxin x EF x QB = | C13: =(C12/100)*'Data Inputs'!C33*'SNCR Design Parameters'!C6 -> 12.115 | D13: lb/hour
A14: Total NOx removed per year = | B14: (NOxin x EF x QB x top)/2000 = | C14: =C13*C11/2000 -> 32.775 | D14: tons/year | E14: =+C14/C12*100 -> 124.545 | F14: tpy uncontrolled
A15: Coal Factor (CoalF) = | B15: 1 for bituminous; 1.05 for sub-bituminous; 1.07 for lignite (weighted average is used for coal blends) | C15: =IF('Data Inputs'!P17=2, (IF('Data Inputs'!S12=2,1,(IF('Data Inputs'!S12=3,1.05,(IF('Data Inputs'!S12=4,1.07,L15)))))), " ") -> 1.07 | E15: =IF('Data Inputs'!P17<>2,"Not applicable; factor applies only to coal-fired boilers", " ") ->  | L15: =((1*'Data Inputs'!I21)+(1.05*'Data Inputs'!I22)+(1.07*'Data Inputs'!I23))/SUM('Data Inputs'!I21:I23) -> 
A16: SO2 Emission rate = | B16: (%S/100)x(64/32)*(1x106)/HHV = | C16: =IF('Data Inputs'!V11=2,"< 3",(IF('Data Inputs'!V11=3,"> 3"," "))) -> < 3 | D16: =IF('Data Inputs'!P17=2, "lbs/MMBtu", " ") -> lbs/MMBtu | E16: =IF('Data Inputs'!P17<>2,"Not applicable; factor applies only to coal-fired boilers", " ") -> 
A17: Elevation Factor (ELEVF) = | B17: 14.7 psia/P = | C17: =IF('Data Inputs'!I31<500, " ", (14.7/C18)) -> 1.180930827 | E17: =IF('Data Inputs'!I31<500, "Not applicable; elevation factor does not apply to plants located at elevations below 500 feet.", " ") -> 
A18: =IF('Data Inputs'!I31=0,"Atmospheric pressure at sea level (P) =","Atmospheric pressure at "&'Data Inputs'!I31&" feet above sea level (P) =") -> Atmospheric pressure at 4555 feet above sea level (P) = | B18: 2116x[(59-(0.00356xh)+459.7)/518.6]5.256 x (1/144)* = | C18: =(2116)*(((59-(0.00356*'Data Inputs'!I31)+459.7)/518.6)^5.256)*(1/144) -> 12.44780784 | D18: psia
A19: Retrofit Factor (RF) = | B19: =IF('Data Inputs'!S8=2,"New Construction",(IF('Data Inputs'!S8=3,"Retrofit to existing boiler"," "))) -> Retrofit to existing boiler | C19: =IF('Data Inputs'!S8=2,0.84,(IF('Data Inputs'!S8=3,'Data Inputs'!D7," "))) -> 1
A20: * Equation is from the National Aeronautics and Space Administration (NASA), Earth Atmosphere Model. Available at https://spaceflightsystems.grc.nasa.gov/education/rocket/atmos.html.
A21: Reagent Data:
A22: Type of reagent used | B22: =IF('Data Inputs'!P42=1,"Urea","Ammonia") -> Ammonia | C22: Molecular Weight of Reagent (MW) = | F22: =IF('Data Inputs'!P42=1, 60.06, 17.03) -> 17.03 | G22: g/mole | L22: =IF('Data Inputs'!P42=1,2,1) -> 1 | M22: =IF('Data Inputs'!P43=1,71,56) -> 56
E23: Density = | F23: ='Data Inputs'!C38 -> 56 | G23: lb/gallon
A25: Parameter | B25: Equation | C25: Calculated Value | D25: Units
A26: Reagent consumption rate (mreagent) = | B26: (NOxin x QB x NSR x MWR)/(MWNOx x SR) = | C26: =('Data Inputs'!C33*'SNCR Design Parameters'!C6*'Data Inputs'!C35*'SNCR Design Parameters'!F22)/(46.01*'SNCR Design Parameters'!L22) -> 17.89199338 | D26: lb/hour
B27: (whre SR = 1 for NH3; 2 for Urea)
A28: Reagent Usage Rate (msol) = | B28: mreagent/Csol = | C28: =C26/('Data Inputs'!C37/100) -> 61.6965289 | D28: lb/hour
B29: (msol x 7.4805)/Reagent Density = | C29: =(C28*7.4805/F23) -> 8.241444365 | D29: gal/hour
A30: Estimated tank volume for reagent storage = | B30: (msol x 7.4805 x tstorage x 24 hours/day)/Reagent Density = | C30: =ROUNDUP(C29*'Data Inputs'!C40*24,-2) -> 2800 | D30: ="gallons (storage needed to store a "& 'Data Inputs'!C40 &" day reagent supply rounded up to the nearest 100 gallons)" -> gallons (storage needed to store a 14 day reagent supply rounded up to the nearest 100 gallons)
A32: Capital Recovery Factor:
A34: Parameter | B34: Equation | C34: Calculated Value
A35: Capital Recovery Factor (CRF) = | B35: i (1+ i)n/(1+ i)n - 1 = | C35: =ROUND((('Data Inputs'!C50/100)*((1+'Data Inputs'!C50/100)^'Data Inputs'!C41))/(((1+'Data Inputs'!C50/100)^'Data Inputs'!C41)-1),4) -> 0.0704
B36: Where n = Equipment Life and i= Interest Rate
A38: Parameter | B38: Equation | C38: Calculated Value | D38: Units
A39: Electricity Usage:
A40: Electricity Consumption (P) = | B40: (0.47 x NOxin x NSR x QB)/NPHR = | C40: =(0.47*'Data Inputs'!C33*'Data Inputs'!C35*'SNCR Design Parameters'!C6)/'Data Inputs'!C18 -> 2.27192595 | D40: kW/hour
A42: Water Usage:
A43: Water consumption (qw) = | B43: (msol/Density of water) x ((Cstored/Cinj) - 1) = | C43: =(C28/8.345)*(('Data Inputs'!C37/'Data Inputs'!C39)-1) -> 14.04714259 | D43: gallons/hour
A45: Fuel Data:
A46: Additional Fuel required to evaporate water in injected reagent (ΔFuel) = | B46: Hv x mreagent x ((1/Cinj)-1) = | C46: =(900*C26*((100/'Data Inputs'!C39)-1))/1000000 -> 0.1449251464 | D46: MMBtu/hour
A48: Ash Disposal:
A49: Additional ash produced due to increased fuel consumption (Δash) = | B49: (Δfuel x %Ash x 1x106)/HHV = | C49: =IF('Data Inputs'!P17=2,(C46*('Data Inputs'!I15/100)*(1/'Data Inputs'!C12)*1000000), 0) -> 2.255128136 | D49: lb/hour | E49: =IF('Data Inputs'!P17<>2,"Not applicable - Ash disposal cost applies only to coal-fired boilers", " ") -> 

Sheet Cost Estimate
A1: Cost Estimate
A3: Total Capital Investment (TCI)
A5: For Coal-Fired Boilers:
A6: TCI = 1.3 x (SNCRcost + APHcost + BOPcost)
A7: For Fuel Oil and Natural Gas-Fired Boilers:
A8: TCI = 1.3 x (SNCRcost + BOPcost)
A10: Capital costs for the SNCR (SNCRcost) = | B10: =B27 -> 1167058.129 | C10: ="in "&'Data Inputs'!$C$48 & " dollars" -> in 2020 dollars
A11: Air Pre-Heater Costs (APHcost)* = | B11: =B36 -> 0 | C11: ="in "&'Data Inputs'!$C$48 & " dollars" -> in 2020 dollars
A12: Balance of Plant Costs (BOPcost) = | B12: =B49 -> 1360249.426 | C12: ="in "&'Data Inputs'!$C$48 & " dollars" -> in 2020 dollars
A13: Total Capital Investment (TCI) = | B13: =1.3*(SUM(B10:B12)) -> 3285499.822 | C13: ="in "&'Data Inputs'!$C$48 & " dollars" -> in 2020 dollars
A14: =IF(AND('Data Inputs'!P17=2,'Data Inputs'!V11=3),"* This factor applies because the boiler burns bituminous coal and emits equal to or greater than 0.3lb/MMBtu of sulfur dioxide. ", "* Not applicable - This factor applies only to coal-fired boilers that burn bituminous coal and emits equal to or greater than 0.3lb/MMBtu of sulfur dioxide.") -> * Not applicable - This factor applies only to coal-fired boilers that burn bituminous coal and emits equal to or greater than 0.3lb/MMBtu of sulfur dioxide.
A17: SNCR Capital Costs (SNCRcost)
A18: For Coal-Fired Utility Boilers:
A19: SNCRcost = 220,000 x (BMW x HRF)0.42 x CoalF x BTF x ELEVF x RF
A20: For Fuel Oil and Natural Gas-Fired Utility Boilers:
A21: SNCRcost = 147,000 x (BMW x HRF)0.42 x ELEVF x RF
A22: For Coal-Fired Industrial Boilers:
A23: SNCRcost = 220,000 x (0.1 x QB x HRF)0.42 x CoalF x BTF x ELEVF x RF
A24: For Fuel Oil and Natural Gas-Fired Industrial Boilers:
A25: SNCRcost = 147,000 x ((QB/NPHR)x HRF)0.42 x ELEVF x RF
A27: SNCR Capital Costs (SNCRcost) = | B27: =(IF('Data Inputs'!P17=2,(220000*(((IF('Data Inputs'!P8=2,'Data Inputs'!C10,(0.1*'SNCR Design Parameters'!C6)))*'SNCR Design Parameters'!C9)^0.42)*'SNCR Design Parameters'!C15*F49),(147000*(((IF('Data Inputs'!P8=2,('Data Inputs'!C10),('SNCR Design Parameters'!C6/'Data Inputs'!C18))*'SNCR Design Parameters'!C9)^0.42)))))*(('Data Inputs'!C49/'Data Inputs'!F49)*(F27)*'SNCR Design Parameters'!C19) -> 1167058.129 | C27: ="in "&'Data Inputs'!$C$48 & " dollars" -> in 2020 dollars | E27: ELEVF | F27: =IF('Data Inputs'!I31<500, 1,'SNCR Design Parameters'!C17) -> 1.180930827
A30: Air Pre-Heater Costs (APHcost)*
A31: For Coal-Fired Utility Boilers:
A32: APHcost = 69,000 x (BMW x HRF x CoalF)0.78 x AHF x RF
A33: For Coal-Fired Industrial Boilers:
A34: APHcost = 69,000 x (0.1 x QB x HRF x CoalF)0.78 x AHF x RF
A36: Air Pre-Heater Costs (APHcost) = | B36: =IF('Data Inputs'!P17=2,(69000*(((IF('Data Inputs'!P8=2,'Data Inputs'!C10,(0.1*'SNCR Design Parameters'!C6)))*'SNCR Design Parameters'!C9*'SNCR Design Parameters'!C15)^0.78)*(IF('Data Inputs'!V11=3,1,0))*('Data Inputs'!C49/'Data Inputs'!F49)*('SNCR Design Parameters'!C19)), 0) -> 0 | C36: ="in "&'Data Inputs'!$C$48 & " dollars" -> in 2020 dollars
A37: =IF(AND('Data Inputs'!P17=2,'Data Inputs'!V11=3),"* This factor applies because the boiler burns bituminous coal and emits equal to or greater than 3lb/MMBtu of sulfur dioxide. ", "* Not applicable - This factor applies only to coal-fired boilers that burn bituminous coal and emit equal to or greater than 3lb/MMBtu of sulfur dioxide.") -> * Not applicable - This factor applies only to coal-fired boilers that burn bituminous coal and emit equal to or greater than 3lb/MMBtu of sulfur dioxide.
A39: Balance of Plant Costs (BOPcost)
A40: For Coal-Fired Utility Boilers:
A41: BOPcost = 320,000 x (BMW)0.33 x (NOxRemoved/hr)0.12 x BTF x RF
A42: For Fuel Oil and Natural Gas-Fired Utility Boilers:
A43: BOPcost = 213,000 x (BMW)0.33 x (NOxRemoved/hr)0.12 x RF
A44: For Coal-Fired Industrial Boilers:
A45: BOPcost = 320,000 x (0.1 x QB)0.33 x (NOxRemoved/hr)0.12 x BTF x RF
A46: For Fuel Oil and Natural Gas-Fired Industrial Boilers:
A47: BOPcost = 213,000 x (QB/NPHR)0.33 x (NOxRemoved/hr)0.12 x RF
A49: Balance of Plant Costs (BOPcost) = | B49: =(IF('Data Inputs'!P8=2,(F50*(('Data Inputs'!C10)^0.33)*(('SNCR Design Parameters'!C13)^0.12)*'Cost Estimate'!F49),(F50*(F51^0.33)*(('SNCR Design Parameters'!C13)^0.12)*'Cost Estimate'!F49)))*('Data Inputs'!C49/'Data Inputs'!F49)*('SNCR Design Parameters'!C19) -> 1360249.426 | C49: ="in "&'Data Inputs'!$C$48 & " dollars" -> in 2020 dollars | F49: =IF('Data Inputs'!P25=2,0.75,1) -> 1 | G49: BTF
F50: =IF('Data Inputs'!P17=2,320000,213000) -> 320000
F51: =IF('Data Inputs'!P17=2,(0.1*'SNCR Design Parameters'!C6),('SNCR Design Parameters'!C6/'Data Inputs'!C18)) -> 24.23
A52: Annual Costs
A54: Total Annual Cost (TAC)
A55: TAC = Direct Annual Costs + Indirect Annual Costs
A57: Direct Annual Costs (DAC) = | B57: =C70 -> 64468.75423 | C57: ="in "&'Data Inputs'!$C$48 & " dollars" -> in 2020 dollars
A58: Indirect Annual Costs (IDAC) = | B58: =C77 -> 232777.6624 | C58: ="in "&'Data Inputs'!$C$48 & " dollars" -> in 2020 dollars
A59: Total annual costs (TAC) = DAC + IDAC | B59: =B57+B58 -> 297246.4166 | C59: ="in "&'Data Inputs'!$C$48 & " dollars" -> in 2020 dollars
A61: Direct Annual Costs (DAC)
A62: DAC = (Annual Maintenance Cost) + (Annual Reagent Cost) + (Annual Electricity Cost) + (Annual Water Cost) + (Annual Fuel Cost) + (Annual Ash Cost)
A64: Annual Maintenance Cost = | B64: ='Data Inputs'!C61&" x TCI =" -> 0.015 x TCI = | C64: ='Data Inputs'!C61*B13 -> 49282.49733 | D64: ="in "&'Data Inputs'!$C$48 & " dollars" -> in 2020 dollars
A65: Annual Reagent Cost = | B65: qsol x Costreag x top = | C65: ='Data Inputs'!C52*'SNCR Design Parameters'!C29*'SNCR Design Parameters'!C11 -> 13065.32536 | D65: ="in "&'Data Inputs'!$C$48 & " dollars" -> in 2020 dollars
A66: Annual Electricity Cost = | B66: P x Costelect x top = | C66: ='SNCR Design Parameters'!C40*'Data Inputs'!C54*'SNCR Design Parameters'!C11 -> 1475.11098 | D66: ="in "&'Data Inputs'!$C$48 & " dollars" -> in 2020 dollars
A67: Annual Water Cost = | B67: qwater x Costwater x top = | C67: ='SNCR Design Parameters'!C43*'Data Inputs'!C53*'SNCR Design Parameters'!C11 -> 348.0989766 | D67: ="in "&'Data Inputs'!$C$48 & " dollars" -> in 2020 dollars
A68: Additional Fuel Cost = | B68: ΔFuel x Costfuel x top = | C68: ='SNCR Design Parameters'!C46*'Data Inputs'!C51*'SNCR Design Parameters'!C11 -> 0 | D68: ="in "&'Data Inputs'!$C$48 & " dollars" -> in 2020 dollars
A69: Additional Ash Cost = | B69: ΔAsh x Costash x top x (1/2000) = | C69: =IF('Data Inputs'!P17=2,('SNCR Design Parameters'!C49*'SNCR Design Parameters'!C11*'Data Inputs'!C55*(1/2000)), 0) -> 297.7215884 | D69: ="in "&'Data Inputs'!$C$48 & " dollars" -> in 2020 dollars
A70: Direct Annual Cost = | C70: =SUM(C64:C69) -> 64468.75423 | D70: ="in "&'Data Inputs'!$C$48 & " dollars" -> in 2020 dollars
A72: Indirect Annual Cost (IDAC)
A73: IDAC = Administrative Charges + Capital Recovery Costs
A75: Administrative Charges (AC) = | B75: ='Data Inputs'!C62 &" x Annual Maintenance Cost =" -> 0.03 x Annual Maintenance Cost = | C75: ='Data Inputs'!C62*C64 -> 1478.47492 | D75: ="in "&'Data Inputs'!$C$48 & " dollars" -> in 2020 dollars
A76: Capital Recovery Costs (CR)= | B76: CRF x TCI = | C76: ='SNCR Design Parameters'!C35*B13 -> 231299.1875 | D76: ="in "&'Data Inputs'!$C$48 & " dollars" -> in 2020 dollars
A77: Indirect Annual Cost (IDAC) = | B77: AC + CR = | C77: =C75+C76 -> 232777.6624 | D77: ="in "&'Data Inputs'!$C$48 & " dollars" -> in 2020 dollars
A80: Cost Effectiveness
A82: Cost Effectiveness = Total Annual Cost/ NOx Removed/year
A84: Total Annual Cost (TAC) = | B84: =B59 -> 297246.4166 | C84: ="per year in "&'Data Inputs'!$C$48 & " dollars" -> per year in 2020 dollars
A85: NOx Removed = | B85: ='SNCR Design Parameters'!C14 -> 32.775 | C85: tons/year
A86: Cost Effectiveness = | B86: =B84/B85 -> 9069.303329 | C86: ="per ton of NOx removed in "&'Data Inputs'!$C$48 & " dollars" -> per ton of NOx removed in 2020 dollars
